bitfinex/quotes_ETHUSD_20241123
["timestamp","ask_amount","ask_price","bid_price","bid_amount"]
[1732320802682,5.0,3318.8,3318.4,0.7835]
[1732320803276,5.0,3318.8,3318.4,0.99228921]
[1732320803917,5.0,3318.7,3318.3,1.30439214]
[1732320804222,5.0,3318.7,3318.4,0.7835]
[1732320804428,5.0,3318.7,3318.6,2.08789214]
[1732320804622,5.0,3318.7,3318.6,2.38829214]
[1732320804790,0.0301186,3319.1,3318.8,0.3004]
[1732320804994,0.0301186,3319.1,3319.0,1.30439214]
[1732320805188,0.0301186,3319.1,3319.0,2.08789214]
[1732320806476,0.0301186,3319.1,3319.0,3.39228428]
[1732320808687,0.0301186,3319.1,3319.0,3.5659616]
[1732320808901,0.0301186,3319.1,3319.0,7.22295776]
[1732320809126,0.0301186,3319.1,3319.0,7.19283231]
[1732320811185,0.0301186,3319.1,3319.0,4.44049616]
[1732320811432,0.0301186,3319.1,3319.0,4.17021683]
[1732320812535,0.0301186,3319.1,3319.0,4.14009616]
[1732320813029,0.0301186,3319.1,3319.0,1.14009616]
[1732320816417,0.0301186,3319.1,3319.0,1.44049616]
[1732320817724,0.0301186,3319.1,3319.0,3.83623615]
[1732320818111,0.0301186,3319.1,3319.0,3.86635668]
[1732320818331,0.0301186,3319.1,3319.0,6.86635668]
[1732320818532,0.0301186,3319.1,3319.0,6.83623615]
[1732320818821,0.0301186,3319.1,3319.0,6.84623615]
[1732320819026,0.0301186,3319.1,3319.0,7.67737596]
[1732320820728,0.0301186,3319.1,3319.0,7.66737596]
[1732320824302,0.0301186,3319.1,3319.0,4.91503981]
[1732320824499,0.0301186,3319.1,3319.0,4.94515987]
[1732320825709,0.0301186,3319.7,3319.5,1.0765]
[1732320825911,0.0301186,3320.4,3319.7,0.3004]
[1732320826112,0.0301186,3320.4,3320.3,6.82883615]
[1732320826343,0.0301186,3320.4,3320.3,7.65997596]
[1732320826514,4.79164425,3320.8,3320.7,3.05273615]
[1732320826714,0.0301186,3321.7,3320.7,3.52843615]
[1732320826917,0.0301186,3321.7,3320.8,0.80620433]
[1732320827116,0.0301186,3321.7,3320.8,1.16205838]
[1732320827618,0.0301186,3321.7,3320.8,1.46245838]
[1732320827945,0.0301186,3321.7,3320.9,0.7761]
[1732320828155,0.0301186,3321.7,3321.0,3.55853708]
[1732320829910,0.0301186,3321.7,3321.1,0.7761]
[1732320830225,0.0301186,3321.7,3321.6,3.52843615]
[1732320830611,0.0301186,3321.7,3321.6,6.55853191]
[1732320830942,0.0301186,3321.7,3321.6,6.52843615]
[1732320831371,0.7887,3322.9,3321.6,6.52843615]
[1732320831511,0.7887,3322.9,3321.7,3.64968451]
[1732320831512,0.0300856,3322.1,3321.7,3.64968451]
[1732320831707,0.0300856,3322.1,3321.8,0.03009515]
[1732320833365,0.0300856,3322.1,3321.7,0.64968451]
[1732320833576,0.0300856,3322.1,3321.8,0.4479072]
[1732320833727,0.0300856,3322.1,3322.0,2.75233615]
[1732320835072,0.0300856,3322.1,3322.0,3.55663615]
[1732320836136,0.0471948,3323.2,3322.0,2.75233615]
[1732320836338,0.63273428,3323.2,3323.1,2.75233615]
[1732320837873,0.0471948,3323.2,3323.1,2.75233615]
[1732320839851,0.0471948,3323.2,3322.9,0.8043]
[1732320840047,0.0471948,3323.2,3323.1,2.75233615]
[1732320840248,0.8553948,3323.2,3323.1,2.75233615]
[1732320841157,0.0471948,3323.2,3323.1,2.75233615]
[1732320841884,0.0471948,3323.2,3323.1,3.05273615]
[1732320843673,0.0471948,3323.2,3322.9,0.3004]
[1732320843674,0.8082,3323.1,3322.9,0.3004]
[1732320844247,0.8082,3323.1,3322.6,0.3004]
[1732320844248,0.84581533,3323.1,3322.6,0.3004]
[1732320844477,0.8082,3323.1,3322.6,0.3004]
[1732320844854,1.44421143,3323.1,3322.6,0.3004]
[1732320845058,1.44421143,3323.1,3322.8,3.05273615]
[1732320845685,0.8082,3323.0,3322.8,0.3004]
[1732320845979,0.8082,3323.0,3322.6,0.3004]
[1732320846149,1.01157422,3323.0,3322.6,0.3004]
[1732320846478,0.8082,3322.9,3322.6,0.3004]
[1732320847139,0.03761943,3322.8,3322.6,0.3004]
[1732320847536,0.8082,3322.7,3322.6,0.3004]
[1732320847741,0.8082,3322.7,3322.0,0.3004]
[1732320848156,0.03762401,3322.6,3322.0,0.3004]
[1732320848363,0.8082,3322.7,3322.0,0.3004]
[1732320848680,0.037624,3322.6,3322.0,0.3004]
[1732320848882,0.8082,3322.6,3322.0,0.3004]
[1732320849176,5.0,3322.9,3322.0,0.3004]
[1732320849177,0.84582428,3322.5,3322.0,0.3004]
[1732320849377,0.8082,3322.5,3322.0,0.3004]
[1732320849882,0.84582423,3322.4,3322.0,0.3004]
[1732320850085,0.8082,3322.4,3322.0,0.3004]
[1732320851659,0.8082,3322.8,3322.3,0.3004]
[1732320852214,0.03762285,3322.7,3322.3,0.3004]
[1732320852371,0.8082,3322.6,3322.3,0.3004]
[1732320852556,0.0376242,3322.5,3322.3,0.3004]
[1732320852748,0.8082,3322.4,3321.7,0.3004]
[1732320852943,0.84582838,3322.3,3321.7,0.3004]
[1732320853202,0.84582838,3322.3,3321.4,0.3004]
[1732320853741,0.84582838,3322.3,3321.1,0.3004]
[1732320853984,0.786,3322.1,3321.1,0.3004]
[1732320854492,0.82363457,3322.1,3321.1,0.3004]
[1732320855689,5.0,3322.0,3321.1,0.3004]
[1732320855859,0.786,3321.9,3321.1,0.3004]
[1732320856064,0.786,3321.8,3321.1,0.3004]
[1732320856260,0.82363592,3321.8,3321.1,0.3004]
[1732320856587,0.82363592,3321.8,3320.8,0.3004]
[1732320856897,0.786,3321.6,3320.7,2.75233615]
[1732320857181,0.786,3321.6,3321.0,2.75233615]
[1732320857384,0.786,3321.6,3321.3,2.75233615]
[1732320858289,0.786,3321.6,3321.0,2.75233615]
[1732320859247,0.786,3321.4,3320.7,2.75233615]
[1732320860695,5.786,3321.4,3320.7,2.75233615]
[1732320861699,0.786,3321.4,3320.7,2.75233615]
[1732320862687,0.786,3321.4,3320.2,3.52393615]
[1732320862991,0.7559,3321.2,3320.2,2.75233615]
[1732320863315,0.7559,3321.4,3320.2,2.75233615]
[1732320863607,0.7559,3321.2,3320.2,2.75233615]
[1732320864284,0.03764397,3321.1,3320.2,2.75233615]
[1732320864481,0.7559,3321.2,3320.2,2.75233615]
[1732320867185,0.7559,3321.0,3320.2,2.75233615]
[1732320867410,0.7559,3320.8,3320.2,2.75233615]
[1732320867617,5.0,3321.3,3319.6,0.7656]
[1732320867618,0.7559,3320.6,3319.8,2.75233615]
[1732320868080,0.03764789,3320.5,3319.8,2.75233615]
[1732320868586,0.7559,3320.4,3319.8,2.75233615]
[1732320868818,0.0376479,3320.3,3319.8,2.75233615]
[1732320869682,0.7559,3320.4,3319.8,3.02756976]
[1732320870090,0.7559,3320.4,3319.9,0.03011911]
[1732320870624,5.7559,3320.7,3320.2,2.75233615]
[1732320870824,5.7559,3320.7,3320.6,2.75233615]
[1732320870825,0.7559,3320.7,3320.6,2.75233615]
[1732320871513,0.7559,3321.2,3320.6,2.75233615]
[1732320871715,0.7559,3321.2,3320.7,0.33051248]
[1732320871946,5.0,3321.6,3321.1,0.3004]
[1732320872114,0.7559,3321.5,3321.1,0.3004]
[1732320873045,5.0,3322.1,3321.4,0.3004]
[1732320873046,0.7559,3322.0,3321.4,0.3004]
[1732320873252,0.7559,3322.0,3321.6,3.05273615]
[1732320875441,0.03762925,3321.9,3321.6,0.3004]
[1732320876021,0.7559,3322.0,3321.6,0.3004]
[1732320876542,0.03763242,3321.9,3321.4,0.3004]
[1732320876703,0.7651,3321.8,3321.4,0.3004]
[1732320877506,0.7651,3321.8,3321.5,0.3004]
[1732320877748,5.7651,3321.8,3321.5,0.3004]
[1732320877928,6.34161,3321.8,3321.5,0.3004]
[1732320879545,5.7651,3321.8,3321.4,0.3004]
[1732320879766,0.7651,3321.8,3321.4,0.3004]
[1732320881418,0.03763279,3321.7,3320.9,3.05273615]
[1732320881646,0.7651,3321.6,3320.9,0.3004]
[1732320881851,0.03763788,3321.5,3320.9,0.3004]
[1732320882050,0.7651,3321.4,3320.5,3.51203615]
[1732320882365,0.03764079,3321.3,3320.5,2.75233615]
[1732320882570,0.7651,3321.4,3320.5,2.75233615]
[1732320882722,5.0,3321.3,3320.5,2.75233615]
[1732320882924,5.0,3321.3,3320.5,3.08509313]
[1732320883833,5.7651,3321.4,3320.5,3.08509313]
[1732320884062,5.7651,3321.4,3321.2,2.75233615]
[1732320884063,5.0,3321.4,3321.2,2.75233615]
[1732320884363,5.0,3321.4,3321.3,0.7666]
[1732320884828,0.8208,3322.1,3321.3,0.7666]
[1732320885621,0.8208,3322.1,3321.2,3.05273615]
[1732320885827,0.8208,3321.9,3320.8,2.75233615]
[1732320886083,0.8208,3321.9,3321.2,2.75233615]
[1732320886238,0.8208,3321.9,3321.2,3.51893615]
[1732320886555,0.0376328,3321.8,3320.9,0.7666]
[1732320886754,0.8208,3321.9,3320.9,0.7666]
[1732320886979,1.40664328,3321.9,3320.9,0.7666]
[1732320887147,1.44427857,3321.9,3320.9,0.7666]
[1732320887348,1.40664328,3321.9,3320.9,0.7666]
[1732320887990,0.8208,3321.9,3320.9,0.7666]
[1732320888171,0.8208,3321.9,3320.9,0.79670823]
[1732320890980,0.8208,3321.9,3320.9,1.09710823]
[1732320891346,0.8208,3321.9,3321.2,2.75233615]
[1732320891546,0.8208,3321.9,3321.3,0.03010519]
[1732320891843,0.8208,3321.9,3321.3,0.33050519]
[1732320892041,0.0212582,3322.2,3321.5,0.3004]
[1732320894251,0.0212582,3322.2,3321.5,0.3305034]
[1732320894793,0.0212582,3322.2,3321.7,0.3004]
[1732320895093,0.0212582,3322.2,3321.9,1.0884]
[1732320895749,0.0212582,3322.2,3321.9,0.3004]
[1732320895946,0.0212582,3322.2,3321.8,0.3004]
[1732320896184,0.0212582,3322.2,3321.8,0.3305007]
[1732320897486,0.0212582,3322.2,3322.1,1.0884]
[1732320897690,0.0212582,3322.2,3322.1,1.11849767]
[1732320900862,0.0212582,3322.2,3322.1,1.11849717]
[1732320902355,0.0212582,3322.2,3322.1,3.84073615]
[1732320902554,0.0212582,3322.2,3322.1,4.22480977]
[1732320903293,0.0299869,3322.9,3322.1,4.22480977]
[1732320903294,0.0299869,3322.9,3322.8,3.84073615]
[1732320907599,0.0299869,3322.9,3322.8,9.5930723]
[1732320908223,0.0299869,3322.9,3322.8,6.84073615]
[1732320908425,0.0299869,3322.9,3322.8,7.52480977]
[1732320910352,0.0299869,3322.9,3322.8,3.05273615]
[1732320910658,0.0299869,3322.9,3322.4,2.75233615]
[1732320912063,0.0299869,3322.9,3320.9,0.01]
[1732320912064,0.7867,3322.8,3321.7,2.75233615]
[1732320912216,0.7867,3322.8,3321.8,0.27523361]
[1732320912858,0.7867,3322.8,3321.7,2.75233615]
[1732320913080,0.7867,3322.6,3321.7,2.75233615]
[1732320916443,0.7867,3322.6,3321.8,0.03010112]
[1732320917977,0.7867,3322.6,3322.0,3.56973615]
[1732320918275,0.1838869,3322.9,3322.3,2.75233615]
[1732320918434,0.1838869,3322.9,3322.4,0.03009517]
[1732320918627,0.1838869,3322.9,3322.3,2.75233615]
[1732320919276,0.1838869,3322.9,3322.3,3.06627664]
[1732320919774,0.1838869,3322.9,3322.4,0.03009518]
[1732320920870,0.1838869,3322.9,3322.3,3.06627664]
[1732320922037,0.8039,3323.1,3321.9,2.75233615]
[1732320922252,0.8039,3322.9,3321.9,2.75233615]
[1732320922459,0.84152287,3322.8,3322.0,0.8174]
[1732320922674,0.8039,3323.2,3322.3,2.75233615]
[1732320922836,0.8039,3323.2,3322.3,2.78242982]
[1732320923168,0.8039,3323.2,3322.4,0.21623918]
[1732320923352,0.8039,3323.2,3322.3,2.78242982]
[1732320923552,0.8039,3323.2,3322.4,0.49451521]
[1732320923772,0.8039,3323.2,3322.5,0.21627223]
[1732320923968,0.8039,3323.2,3322.4,0.27824298]
[1732320924291,0.8039,3323.2,3322.6,2.75233615]
[1732320924457,0.8039,3323.2,3322.9,2.75233615]
[1732320924654,5.0,3323.3,3322.9,2.75233615]
[1732320924868,5.0,3323.3,3323.2,2.75233615]
[1732320925181,5.0,3323.3,3323.2,3.34725369]
[1732320926499,5.0,3323.3,3323.2,3.3472639]
[1732320926677,5.0,3323.3,3323.2,3.6476639]
[1732320928066,5.0,3323.3,3323.2,4.4650639]
[1732320928365,0.0299869,3323.6,3323.5,3.87013615]
[1732320928559,0.0299869,3323.6,3323.5,4.11616637]
[1732320928760,0.0299869,3323.6,3323.5,4.12616637]
[1732320928991,4.0299869,3324.2,3324.1,3.87013615]
[1732320929153,5.0,3324.3,3324.2,4.1178]
[1732320929154,1.4052014,3324.3,3324.2,4.1178]
[1732320929350,1.4052014,3324.3,3324.2,4.73851173]
[1732320930285,1.4052014,3324.3,3324.2,4.52256145]
[1732320930448,1.4052014,3324.3,3324.2,4.73798076]
[1732320930649,1.4052014,3324.3,3324.2,8.26932224]
[1732320930861,7.26963402,3325.3,3324.6,0.3104]
[1732320931193,7.26963402,3325.3,3324.9,7.64914148]
[1732320931363,7.26963402,3325.3,3324.9,7.86456079]
[1732320931563,7.26963402,3325.3,3324.9,8.32212894]
[1732320931771,7.26963402,3325.3,3325.1,0.8174]
[1732320931970,7.26963402,3325.3,3325.1,0.8474668]
[1732320932286,7.26963402,3325.3,3325.1,0.86805498]
[1732320933158,7.26963402,3325.3,3325.1,0.89812491]
[1732320933500,7.26963402,3325.3,3325.1,0.05065498]
[1732320933793,7.26963402,3325.3,3324.9,3.53134148]
[1732320933975,7.26963402,3325.3,3325.1,0.05060237]
[1732320934175,7.26963402,3325.3,3325.0,0.05061289]
[1732320934382,7.26963402,3325.3,3324.5,3.53134148]
[1732320934383,5.1269634,3325.2,3324.5,3.53134148]
[1732320934546,4.0,3325.2,3325.1,0.05061289]
[1732320934919,4.0,3325.2,3324.6,0.03007146]
[1732320935100,4.0,3325.2,3325.1,0.05061289]
[1732320935249,4.0,3325.2,3324.6,0.03007146]
[1732320935449,4.0,3325.2,3324.5,3.53134148]
[1732320935450,1.9127634,3325.1,3324.7,0.05061289]
[1732320935664,1.9127634,3325.1,3324.5,3.53134148]
[1732320935881,1.9127634,3325.1,3324.6,0.05031013]
[1732320936197,0.59503549,3325.0,3324.6,0.05031013]
[1732320936702,0.59503549,3325.0,3324.0,3.56141589]
[1732320936906,0.59503549,3325.0,3324.1,0.05038774]
[1732320937463,0.59503549,3325.0,3324.2,0.03007701]
[1732320937662,0.59503549,3325.0,3324.3,0.05043379]
[1732320937867,0.25077989,3324.9,3324.2,0.03007701]
[1732320938073,0.25077989,3324.9,3324.3,0.05043511]
[1732320938259,0.25077989,3324.9,3324.1,0.03007644]
[1732320938460,0.25077989,3324.9,3324.2,0.05044827]
[1732320938672,0.82339648,3324.8,3324.2,0.05044827]
[1732320938873,0.82339648,3324.8,3323.2,3.56141866]
[1732320939074,0.82339648,3324.8,3323.3,0.05006931]
[1732320939595,0.82339648,3324.8,3323.4,0.03008334]
[1732320939801,5.0,3324.6,3323.4,0.03008334]
[1732320939975,0.7858,3324.5,3323.4,0.03008334]
[1732320940310,0.7858,3324.5,3323.5,0.05006931]
[1732320940494,0.57858,3324.4,3323.5,0.05006931]
[1732320941015,0.7858,3324.5,3323.3,0.03008335]
[1732320941305,0.03760423,3324.4,3323.2,3.53134148]
[1732320941513,0.7858,3324.3,3323.3,0.05006931]
[1732320942014,1.36814042,3324.2,3323.3,0.05006931]
[1732320942181,1.36814042,3324.2,3323.0,0.03008338]
[1732320942384,1.36814042,3324.2,3323.4,0.05013117]
[1732320942710,1.36814042,3324.2,3323.5,0.05013117]
[1732320942711,5.0,3324.1,3323.5,0.05013117]
[1732320942919,5.0,3324.1,3323.3,0.7587]
[1732320943124,5.0,3324.1,3323.4,0.03008329]
[1732320943411,5.0,3324.1,3323.4,0.05013117]
[1732320943782,0.7858,3324.2,3323.4,0.05013117]
[1732320944300,0.7858,3324.2,3323.4,0.41128676]
[1732320944914,5.03760417,3324.8,3323.6,4.29004148]
[1732320944915,0.7858,3324.7,3323.6,4.29004148]
[1732320945074,0.7858,3324.7,3323.7,0.08021184]
[1732320946904,0.7858,3324.7,3323.8,0.21464673]
[1732320947100,5.01,3325.6,3324.0,3.53134148]
[1732320947329,0.7858,3325.1,3324.1,0.03007606]
[1732320947499,0.7858,3325.1,3324.1,0.0801151]
[1732320947838,0.7858,3325.1,3324.2,0.7587]
[1732320947992,0.7858,3325.1,3324.3,0.03007445]
[1732320948194,0.7858,3325.1,3324.3,0.08011086]
[1732320948839,5.0,3325.9,3324.4,3.53134148]
[1732320948990,0.7858,3325.8,3324.8,3.53134148]
[1732320949191,0.7858,3325.8,3324.9,0.7587]
[1732320949514,0.7858,3325.8,3324.9,0.80869036]
[1732320950190,0.7858,3325.8,3324.9,0.04999036]
[1732320950395,0.0344477,3326.0,3325.0,0.03007092]
[1732320950697,0.0344477,3326.0,3325.1,0.80868773]
[1732320957711,0.0344477,3326.0,3325.1,0.04998773]
[1732320957950,0.0344477,3326.0,3325.0,0.36114028]
[1732320958242,0.0344477,3326.0,3325.1,0.04987198]
[1732320958617,0.7808,3325.8,3324.9,3.53134148]
[1732320958822,0.7808,3325.8,3325.1,0.04923386]
[1732320959062,0.7808,3325.8,3324.9,3.53134148]
[1732320959226,0.7808,3325.8,3325.1,0.04923386]
[1732320959406,0.7808,3325.8,3325.0,0.35313415]
[1732320959607,0.7808,3325.8,3325.1,0.04923386]
[1732320959907,0.7808,3325.8,3325.0,0.35313415]
[1732320960104,0.7808,3325.8,3325.1,0.04923386]
[1732320960319,0.7808,3325.8,3325.1,0.39337095]
[1732320960514,0.7808,3325.8,3325.1,0.44260481]
[1732320961796,0.7808,3325.8,3325.1,0.74300481]
[1732320962667,0.7808,3325.8,3325.1,0.34963386]
[1732320962866,0.7808,3325.8,3325.1,0.04923386]
[1732320963067,0.7808,3325.8,3325.0,0.3004]
[1732320963278,0.8203,3325.1,3325.0,0.3004]
[1732320963777,0.8203,3325.1,3324.6,0.3004]
[1732320964790,0.8203,3325.1,3324.2,0.3004]
[1732320965075,0.8203,3325.1,3324.2,0.73914157]
[1732320965477,0.03759399,3325.0,3324.2,0.73914157]
[1732320965647,0.03759399,3325.0,3324.2,0.3004]
[1732320965648,0.8203,3324.9,3324.2,0.3004]
[1732320966155,0.03759731,3324.8,3323.8,0.3004]
[1732320966345,0.03759731,3324.8,3323.8,0.68357415]
[1732320966550,0.8203,3324.7,3323.8,0.68357415]
[1732320966854,0.03760295,3324.6,3323.9,0.04892064]
[1732320967055,0.8203,3324.7,3323.9,0.04892064]
[1732320967570,0.8203,3324.5,3323.9,0.04892064]
[1732320967765,0.03760489,3324.4,3323.9,0.04892064]
[1732320967933,0.8203,3324.5,3323.3,3.53134148]
[1732320968135,0.0376049,3324.4,3324.0,0.04892064]
[1732320968496,5.0,3324.6,3324.2,0.3004]
[1732320968779,4.0,3325.2,3324.8,0.826]
[1732320968966,4.0,3325.2,3325.0,3.53134148]
[1732320969276,4.0,3325.2,3325.1,0.04895222]
[1732320969481,4.0,3325.2,3325.0,3.53134148]
[1732320969778,4.0,3325.2,3325.1,0.04895222]
[1732320970143,4.0,3325.2,3325.0,3.53134148]
[1732320970346,4.0,3325.2,3325.1,0.04884828]
[1732320970764,4.0,3325.2,3325.1,2.74229972]
[1732320971080,4.0,3325.2,3325.1,2.791148]
[1732320972533,4.0,3325.2,3325.1,0.04884828]
[1732320972989,4.0,3325.2,3325.0,0.826]
[1732320973142,4.0,3325.2,3325.1,0.38929774]
[1732320973343,4.0,3325.2,3325.1,1.21529774]
[1732320974286,0.0344477,3326.0,3325.1,0.38929774]
[1732320974495,0.0344477,3326.0,3325.2,1.1042]
[1732320974659,0.0344477,3326.0,3325.2,1.15302198]
[1732320976192,0.0344477,3326.0,3325.7,0.3004]
[1732320976396,0.0344477,3326.0,3325.9,7.63645267]
[1732320976688,0.0344477,3326.0,3325.9,7.38461689]
[1732320978089,5.0,3326.3,3325.9,7.38461689]
[1732320978249,5.0,3326.3,3326.1,0.8038]
[1732320978645,5.0,3326.3,3326.1,0.85228142]
[1732320980351,5.0,3326.3,3326.1,9.67228142]
[1732320980550,5.0,3326.3,3326.2,3.8038]
[1732320980778,5.0,3326.3,3326.2,3.83385543]
[1732320980973,5.0,3326.3,3326.2,3.88231846]
[1732320981566,5.0,3326.3,3326.2,3.88231847]
[1732320982303,5.0,3326.3,3326.2,0.04846303]
[1732320982597,5.0,3326.3,3325.9,3.53225267]
[1732320982598,5.0,3326.3,3326.0,0.03005949]
[1732320982764,5.0,3326.3,3326.2,0.04664685]
[1732320983291,5.0,3326.3,3326.0,0.03005949]
[1732320983473,5.0,3326.3,3326.1,0.04664685]
[1732320983649,5.0,3326.3,3326.1,0.03006054]
[1732320983875,5.0,3326.3,3326.2,0.04664685]
[1732320984107,5.0,3326.3,3325.6,0.03006118]
[1732320984407,5.0,3326.3,3325.7,0.04664685]
[1732320984608,5.0,3326.3,3325.8,0.03006119]
[1732320985109,5.0,3326.3,3325.9,0.04664685]
[1732320986321,5.0,3326.3,3326.0,0.03006122]
[1732320986678,5.0,3326.3,3326.1,0.83724685]
[1732320989998,5.0,3326.3,3326.1,0.04664685]
[1732320990489,5.0,3326.3,3326.2,0.04671623]
[1732320990689,5.0,3326.3,3325.9,3.53225267]
[1732320991010,5.0,3326.3,3326.0,0.04671623]
[1732320992138,5.0151385,3326.3,3326.0,0.04671623]
[1732320995947,5.51665235,3326.3,3326.0,0.04671623]
[1732320996153,0.8058,3326.2,3326.0,0.04671623]
[1732320996433,0.8058,3326.2,3325.7,0.0300614]
[1732320996798,0.8058,3326.2,3325.8,0.0469218]
[1732320999545,0.8058,3326.2,3325.3,0.03006284]
[1732320999911,0.8058,3326.2,3325.4,0.04691394]
[1732321000137,0.8058,3326.2,3325.5,0.03006284]
[1732321000758,0.8058,3326.2,3325.6,0.04692441]
[1732321001113,0.8058,3326.2,3325.7,0.3004]
[1732321001537,0.8058,3326.2,3325.8,0.04692441]
[1732321001740,0.8058,3326.2,3325.7,0.3004]
[1732321002256,0.8058,3326.2,3325.8,0.04692441]
[1732321002614,0.8058,3326.2,3325.6,0.03006285]
[1732321002815,0.8058,3326.2,3325.9,0.04692441]
[1732321003041,0.8058,3326.2,3325.6,0.03006285]
[1732321003042,0.8058,3326.1,3325.7,0.3004]
[1732321003242,0.8058,3326.1,3324.7,0.03006726]
[1732321003243,0.84338407,3326.1,3324.7,0.03006726]
[1732321003617,0.84338407,3326.1,3324.8,0.04538062]
[1732321003817,0.8058,3325.9,3324.8,0.04538062]
[1732321004011,0.8058,3325.7,3324.2,0.0162788]
[1732321004250,0.84339147,3325.6,3324.2,0.0162788]
[1732321004547,0.84339147,3325.6,3324.3,0.04538062]
[1732321004756,0.84339664,3325.6,3324.3,0.04538062]
[1732321004914,0.01,3325.5,3324.3,0.04538062]
[1732321005253,0.8158,3325.3,3324.2,0.0162788]
[1732321005431,0.8058,3325.1,3324.2,0.0162788]
[1732321005627,5.84340321,3325.0,3324.2,0.0162788]
[1732321005953,0.8058,3324.9,3324.2,0.0162788]
[1732321006155,0.84340614,3324.8,3324.2,0.0162788]
[1732321007736,5.0,3324.5,3324.2,0.0162788]
[1732321008057,0.8058,3324.4,3324.2,0.0162788]
[1732321008523,0.03760548,3324.3,3324.2,0.0162788]
[1732321008725,1.34716603,3324.3,3324.2,0.0162788]
[1732321008920,0.84340548,3324.3,3324.2,0.0162788]
[1732321010096,0.8058,3324.3,3324.2,0.0162788]
[1732321010637,0.84340949,3324.3,3324.2,0.0162788]
[1732321010844,0.8058,3324.3,3324.2,0.0162788]
[1732321013370,0.8158,3324.3,3324.2,0.0162788]
[1732321013553,7.38566403,3324.3,3324.2,0.0162788]
[1732321013763,0.2762,3323.6,3323.5,0.0314173]
[1732321013960,0.31382084,3323.6,3323.5,0.0314173]
[1732321015252,0.32382084,3323.6,3323.5,0.0314173]
[1732321016065,0.32382084,3323.6,3322.8,0.0314173]
[1732321016066,0.01,3323.2,3322.8,0.0314173]
[1732321016392,0.26,3323.1,3322.8,0.0314173]
[1732321016603,0.26,3322.9,3322.8,0.0314173]
[1732321017052,8.59076265,3322.9,3322.8,0.0314173]
[1732321018357,5.26,3322.9,3322.8,0.0314173]
[1732321018791,0.26,3322.9,3322.8,0.0314173]
[1732321019900,5.29762449,3322.9,3322.8,0.0314173]
[1732321020797,8.30762449,3322.9,3322.8,0.0314173]
[1732321020961,8.27,3322.9,3322.8,0.0314173]
[1732321021166,9.098,3322.9,3322.8,0.0314173]
[1732321021719,1.098,3322.9,3322.8,0.0314173]
[1732321022016,0.30762626,3322.9,3322.8,0.0314173]
[1732321022509,6.83987893,3322.9,3322.8,0.0314173]
[1732321022722,6.80225267,3322.9,3322.8,0.0314173]
[1732321024668,11.80225267,3322.9,3322.8,0.0314173]
[1732321025137,8.26,3322.9,3322.8,0.0314173]
[1732321025271,9.086,3322.9,3322.8,0.0314173]
[1732321025472,5.26,3322.9,3322.8,0.0314173]
[1732321025672,0.26,3322.9,3322.8,0.0314173]
[1732321026319,5.8039,3323.2,3322.8,0.0314173]
[1732321026675,0.8039,3323.5,3322.8,0.0314173]
[1732321026875,0.0376178,3323.4,3322.8,0.0314173]
[1732321027778,0.8039,3323.3,3322.8,0.0314173]
[1732321028096,0.03762594,3323.2,3322.8,0.0314173]
[1732321028777,5.0,3323.1,3322.8,0.0314173]
[1732321028986,0.54238851,3323.0,3322.8,0.0314173]
[1732321029531,0.8039,3322.9,3322.8,0.0314173]
[1732321029702,5.8039,3322.9,3322.8,0.0314173]
[1732321029894,8.8139,3322.9,3322.8,0.0314173]
[1732321031533,8.8039,3322.9,3322.8,0.0314173]
[1732321032238,10.03951527,3322.9,3322.8,0.0314173]
[1732321032838,10.04951527,3322.9,3322.8,0.0314173]
[1732321034362,10.04951527,3322.9,3322.1,0.0314173]
[1732321034363,0.8097,3322.2,3322.1,0.0314173]
[1732321034661,0.84733947,3322.2,3322.1,0.0314173]
[1732321034861,1.58629868,3322.2,3322.1,0.0314173]
[1732321035340,1.59629868,3322.2,3322.1,0.0314173]
[1732321035797,6.59629868,3322.2,3322.1,0.0314173]
[1732321036002,9.55865921,3322.2,3322.1,0.0314173]
[1732321036860,9.55865921,3322.2,3321.4,0.0314173]
[1732321036861,0.8097,3321.5,3321.4,0.0314173]
[1732321037153,3.85734883,3321.5,3321.4,0.0314173]
[1732321037723,3.85734883,3321.5,3320.0,0.0314173]
[1732321037724,0.01,3321.1,3320.0,0.0334426]
[1732321038048,0.7997,3320.8,3320.0,0.0334426]
[1732321038211,0.41962704,3320.7,3320.0,0.0334426]
[1732321038725,5.0,3320.1,3320.0,0.0334426]
[1732321039243,5.0,3320.1,3320.0,0.7959426]
[1732321039547,5.0,3320.1,3320.0,1.01189652]
[1732321039849,5.0,3321.0,3320.0,1.04682522]
[1732321040046,0.03764784,3320.9,3320.1,0.21595392]
[1732321040255,0.03764784,3320.9,3320.0,0.7959426]
[1732321040408,0.03764784,3320.9,3320.1,0.21600498]
[1732321040610,0.03764784,3320.9,3320.2,0.21600498]
[1732321040812,5.03764784,3320.9,3320.0,0.7959426]
[1732321041110,5.0,3320.9,3320.1,0.21599775]
[1732321041313,5.0,3320.9,3320.2,0.21607303]
[1732321041545,5.0,3320.9,3320.0,0.7959426]
[1732321041546,5.0,3320.9,3320.3,0.21607303]
[1732321041749,0.7997,3321.2,3320.4,0.21607303]
[1732321041961,0.7997,3321.2,3320.0,0.7959426]
[1732321042117,0.03764775,3321.1,3320.1,0.21606053]
[1732321042316,0.03764775,3321.1,3320.2,0.21606053]
[1732321042517,0.03764775,3321.1,3320.3,0.21606053]
[1732321042837,5.0,3321.0,3320.4,0.21606053]
[1732321043040,3.54141619,3320.9,3320.0,0.7959426]
[1732321043242,3.54141619,3320.9,3320.0,0.0334426]
[1732321043552,0.7997,3320.8,3320.0,0.0334426]
[1732321043712,5.0,3320.4,3320.0,0.0334426]
[1732321043912,0.03765613,3320.3,3320.0,0.0334426]
[1732321044549,5.03765526,3320.4,3320.0,0.0334426]
[1732321044709,0.03765526,3320.4,3320.0,0.0334426]
[1732321045639,0.7997,3320.3,3320.0,0.0334426]
[1732321045839,5.03765697,3320.2,3320.0,0.0334426]
[1732321046027,0.4665574,3320.0,3319.3,0.7959426]
[1732321046243,0.03765849,3319.9,3319.4,0.21648959]
[1732321046425,0.03765849,3319.9,3319.3,0.7959426]
[1732321046620,0.50421589,3320.0,3319.4,0.21641772]
[1732321046840,0.50421589,3320.0,3319.5,0.21641772]
[1732321047059,0.50421589,3320.0,3319.3,0.7959426]
[1732321047219,0.4665574,3320.0,3319.4,0.2164008]
[1732321047421,0.4665574,3320.0,3319.5,0.2164008]